Cogmind - Beta 14 @@@ ROGUE MODE // 2024.09.08 @ 10:48:24 Player: rice Result: Destroyed by L-41 Fighter with Axe Performance ------------- Evolutions (3) 1500 Regions Visited (10) 2000 Robots Destroyed (90) 450 Value Destroyed (3184) 3184 Prototype IDs (13) 260 Alien Tech Used (0) 0 Bonus (558) 558 TOTAL SCORE: 7952 Bonus ------- High Alert Combat Kills 44 Follower Combat Kills 214 Met Data Miner 300 Cogmind --------- Core Integrity 0/700 Matter 300/300 Energy 100/100 System Corruption 0% Temperature Cool (0) Movement Core (400) Ox7 Location -6/Proximity Caves Parts ------- > --- POWER (2) -------- (None) > --- PROPULSION (3) --- (None) > --- UTILITY (5) ------ Large Storage Unit Advanced Targeting Computer > --- WEAPON (3) ------- Chainsword > --- INVENTORY (15) --- Coolant Injector Minigun Minigun Ripper Peak State ------------ > --- POWER ------------ Deuterium Engine Improved Deuterium Engine > --- PROPULSION ------- Compact Wheel Armored Huge Wheel > --- UTILITY ---------- Large Storage Unit Improved Salvage Targeting Computer Microactuators Hardened Medium Armor Plating Hacking Suite > --- WEAPON ----------- Minigun Minigun Minigun > --- INVENTORY -------- Armored Huge Wheel Coolant Injector Energy Filter Force Booster Heavy Armor Plating Heavy Armor Plating Minigun Minigun Heavy Missile Launcher Chainsword Chainsword Great Axe [Rating: 45] Favorites ----------- Power Reinforced Ion Engine Engine Reinforced Ion Engine Power Core Enhanced Nuclear Core Propulsion Aluminum Leg Treads Light Treads Leg Aluminum Leg Wheel Armored Huge Wheel Utility Large Storage Unit Device Weight Redist. System Storage Large Storage Unit Processor Salvage Targeting Computer Hackware Hacking Suite Protection Light Armor Plating Weapon Particle Gun Energy Gun Particle Gun Ballistic Gun Minigun Launcher Grenade Launcher Special Weapon Mining Laser Slashing Weapon Chainsword Build | -11 -10 -9 -9 -8 -8 -7 -7 -7 -7 -6 ------- Run | Yrd Mat Mat Min Mat Sto Fac Low Low Dat Pro Slots Evolved 6 | . . 2 . 2 . 2 . . . . Power 1 | . . . . . . 1 . . . . Propulsion 1 | . . . . 1 . . . . . . Utility 3 | . . 2 . 1 . . . . . . Weapon 1 | . . . . . . 1 . . . . Parts Attached 129 | 6 3 18 8 17 39 27 9 1 . 1 Power 12 | 1 . 2 . 2 1 5 . 1 . . Engine 8 | 1 . 2 . 1 1 3 . . . . Core 4 | . . . . 1 . 2 . 1 . . Reactor . | . . . . . . . . . . . Propulsion 36 | 2 . 3 3 4 19 4 1 . . . Treads 12 | 2 . 1 . 3 6 . . . . . Leg 21 | . . 2 3 1 13 2 . . . . Wheel 3 | . . . . . . 2 1 . . . Hover . | . . . . . . . . . . . Flight . | . . . . . . . . . . . Utility 40 | 1 1 10 3 7 7 9 2 . . . Device 13 | . 1 1 1 2 3 4 1 . . . Storage 5 | 1 . 2 . 2 . . . . . . Processor 4 | . . . . 1 1 2 . . . . Hackware 1 | . . . . . . 1 . . . . Protection 17 | . . 7 2 2 3 2 1 . . . Artifact . | . . . . . . . . . . . Weapon 41 | 2 2 3 2 4 12 9 6 . . 1 Energy Gun 11 | . . 1 . . 5 5 . . . . Energy Cannon . | . . . . . . . . . . . Ballistic Gun 15 | 2 2 . . 3 4 3 1 . . . Ballistic Cannon . | . . . . . . . . . . . Launcher 5 | . . 2 1 . . . 2 . . . Special Weapon 1 | . . . 1 . . . . . . . Impact Weapon . | . . . . . . . . . . . Slashing Weapon 9 | . . . . 1 3 1 3 . . 1 Piercing Weapon . | . . . . . . . . . . . Special Melee Weapon . | . . . . . . . . . . . Unidentified Prototypes 2 | . . . 1 1 . . . . . . Corrupted Parts 1 | . . . 1 . . . . . . . System Corruption 1 | . . . 1 . . . . . . . Parts Lost 43 | . . 5 3 2 14 4 10 . . 5 Power 7 | . . 1 . . 1 2 2 . . 1 Propulsion 11 | . . 2 . . 5 1 1 . . 2 Utility 10 | . . 1 2 1 2 . 3 . . 1 Weapon 15 | . . 1 1 1 6 1 4 . . 1 Highest Loss Streak 7 | . . 2 3 1 7 2 5 . . 2 To Critical Strikes . | . . . . . . . . . . . Average Slot Usage (%) 90 | . 98 95 98 95 96 94 65 54 61 48 Engine 7 | . 14 11 11 7 2 11 6 . . . Core 2 | . . . . 1 5 2 . 1 7 3 Treads 8 | . 28 5 . 15 17 . . . . . Leg 9 | . . 14 22 8 7 11 . . . . Wheel 3 | . . . . . . 7 14 15 15 9 Device 10 | . 13 8 11 11 14 11 3 7 7 3 Storage 9 | . 14 11 11 9 9 7 7 7 7 7 Processor 6 | . . . . 8 11 7 7 7 7 7 Protection 10 | . . 22 20 14 9 7 3 . . . Energy Gun 5 | . . 2 11 1 4 13 . . . . Ballistic Gun 8 | . 28 13 . 11 6 8 8 . . . Launcher 1 | . . 5 8 . . . 1 . . . Slashing Weapon 3 | . . . . 4 6 . 7 15 15 15 Peak Build Rating 45 | 6 7 12 20 29 31 45 42 29 29 29 Average Rating 23 | 4 6 10 12 20 26 36 32 26 29 24 On Entrance 19 | . 6 7 12 12 29 27 42 26 29 29 Naked Turns . | . . . . . . . . . . . Heaviest Build 63 | 12 13 29 27 44 43 63 63 36 36 36 Greatest Support 68 | 40 40 40 26 68 68 53 44 44 44 44 Greatest Overweight (x) 3 | . . 1 1 . 3 1 3 . . 1 Average Overweight (x) . | . . . . . . . . . . . Largest Inventory Capacity 15 | 8 8 10 8 15 15 15 15 15 15 15 Average Capacity 12 | 7 8 8 8 9 15 15 15 15 15 15 Most Carried 15 | 3 6 10 8 10 15 15 12 5 5 5 Average Carried 9 | 1 4 7 7 7 12 12 7 5 5 4 Final Capacity 15 | 8 8 8 8 15 15 15 15 15 15 15 Final Carried 12 | 3 6 7 6 9 12 12 5 5 5 4 Class Distribution -------------------- 53% | Mutant 15% | Scavenger-Mutant 10% | Scavenger-Tank 9% | Gladiator 5% | Tank 3% | Gunner Dominant Class ---------------- Mutant | -10/Materials Mutant | -9/Materials Mutant | -9/Mines Scavenger-Mutant | -8/Materials Mutant | -8/Storage Scavenger-Tank | -7/Factory Gladiator | -7/Lower Caves Gladiator | -7/Lower Caves Gladiator | -7/Data Miner Mutant | -6/Proximity Caves Resources | -11 -10 -9 -9 -8 -8 -7 -7 -7 -7 -6 ----------- Run | Yrd Mat Mat Min Mat Sto Fac Low Low Dat Pro Matter Collected 2471 | 232 164 376 124 211 566 257 462 65 . 14 Remotely . | . . . . . . . . . . . Salvage Created 3544 | . 216 591 200 293 1426 426 367 . . 25 Parts 189 | . 12 50 10 18 67 20 10 . . 2 Haulers Intercepted 1 | . . 1 . . . . . . . . Recyclers Shooed 2 | . . 2 . . . . . . . . Parts Field Recycled . | . . . . . . . . . . . Retrieved Matter . | . . . . . . . . . . . Parts Self-Destructed 17 | . . . . . . . 9 1 . 7 Prevented 2 | . . . . . . . . 2 . . Kills | -11 -10 -9 -9 -8 -8 -7 -7 -7 -7 -6 ------- Run | Yrd Mat Mat Min Mat Sto Fac Low Low Dat Pro Combat Hostiles Destroyed 83 | . 8 20 7 5 25 6 11 . . 1 Melee 18 | . . . . . 14 . 3 . . 1 Guns 51 | . 8 13 5 5 10 6 4 . . . AOE 13 | . . 7 2 . . . 4 . . . Classes Destroyed 13 | . 2 6 1 . 2 1 1 . . . Worker 4 | . . 2 . . 2 . . . . . Builder 1 | . . 1 . . . . . . . . Hauler 1 | . . 1 . . . . . . . . Recycler 2 | . . . . . 1 1 . . . . Operator 1 | . . . . . 1 . . . . . Watcher 1 | . . 1 . . . . . . . . Swarmer 13 | . 5 7 . . . . . . . 1 Grunt 48 | . 3 10 4 2 16 4 9 . . . Brawler 4 | . . 1 . 1 1 . 1 . . . Sentry 13 | . . 2 . 2 8 1 . . . . Programmer 1 | . . . . . . 1 . . . . Behemoth 1 | . . . . . . . 1 . . . Assembled 3 | . . . 3 . . . . . . . Best Kill Streak 9 | . 5 9 3 3 3 4 4 . . 1 Combat Bots Only 6 | . 5 6 3 3 3 3 4 . . 1 Max Kills in Single Turn 3 | . 1 3 1 1 1 2 1 . . 1 Gunslinging . | . . . . . . . . . . . Exploded 3 | . . 3 1 . . . 1 . . . Melee 1 | . . . . . 1 . 1 . . 1 Uniques/NPCs Destroyed . | . . . . . . . . . . . Combat | -11 -10 -9 -9 -8 -8 -7 -7 -7 -7 -6 -------- Run | Yrd Mat Mat Min Mat Sto Fac Low Low Dat Pro Hostile Shots Fired 636 | . 54 94 33 22 217 43 119 . . 54 Missed 164 | . 14 28 8 5 48 9 33 . . 19 Damage Taken 7993 | . 374 908 538 336 2470 633 1959 . . 775 Core 1613 | . 68 107 193 48 474 89 271 . . 363 Absorbed by Shields . | . . . . . . . . . . . Redirected to Shielding 238 | . . . . . 177 61 . . . . Regen/Repaired (Parts) 169 | . . 128 . . 41 . . . . . Core Remaining (%) 50 | 100 72 . 25 . 5 . . . . . Volleys Fired 262 | . 26 69 41 15 66 16 29 . . . Largest 3 | . 2 2 2 2 2 3 3 . . . Hottest 195 | . 40 40 100 65 130 195 89 . . . Shots Fired 463 | . 52 120 43 30 103 48 67 . . . Gun 419 | . 52 106 29 30 103 48 51 . . . Cannon . | . . . . . . . . . . . Launcher 32 | . . 14 2 . . . 16 . . . Special 12 | . . . 12 . . . . . . . Kinetic 295 | . 52 106 . 27 44 15 51 . . . Thermal 104 | . . . 12 . 59 33 . . . . Explosive 32 | . . 14 2 . . . 16 . . . Electromagnetic 32 | . . . 29 3 . . . . . . Robot Hit Streak 32 | . 22 9 5 20 11 24 32 . . . Robot Miss Streak 9 | . 2 2 9 1 2 2 1 . . . Penetration Max . | . . . . . . . . . . . Secondary Targets 2 | . . 2 . . . . . . . . Max Gunslinging Chain 1 | . . 1 . . . . . . . . Shots Hit Robots 429 | . 36 85 23 27 145 37 71 . . 5 Core Hits 201 | . 14 64 19 12 45 16 28 . . 3 Critical Kills . | . . . . . . . . . . . Critical Parts Destroyed 1 | . . 1 . . . . . . . . Critical Strikes 13 | . . 1 . . 8 1 2 . . 1 Burn 1 | . . . . . . 1 . . . . Destroy 1 | . . 1 . . . . . . . . Sever 11 | . . . . . 8 . 2 . . 1 Melee Attacks 110 | . . . . . 73 11 20 . . 6 Impact . | . . . . . . . . . . . Slashing 110 | . . . . . 73 11 20 . . 6 Piercing . | . . . . . . . . . . . Sneak Attacks 8 | . . . . . 8 . . . . . Combat Hostiles 1 | . . . . . 1 . . . . . Follow-up Attacks 11 | . . . . . 3 . 7 . . 1 Damage Inflicted 9185 | . 355 1278 485 391 3480 642 2391 . . 163 Guns 4229 | . 351 663 306 387 1201 613 708 . . . Cannons . | . . . . . . . . . . . Explosions 1902 | . . 615 179 . . . 1108 . . . Melee 3001 | . . . . . 2263 . 575 . . 163 Ramming 53 | . 4 . . 4 16 29 . . . . Kinetic 2826 | . 351 663 . 340 515 249 708 . . . Thermal 1100 | . . . 50 . 686 364 . . . . Explosive 1852 | . . 615 129 . . . 1108 . . . Electromagnetic 353 | . . . 306 47 . . . . . . Impact . | . . . . . . . . . . . Slashing 3001 | . . . . . 2263 . 575 . . 163 Piercing . | . . . . . . . . . . . Highest Corruption 4 | . . . 4 4 2 . . . . . Average Corruption 2 | . . . 1 3 2 . . . . . Corruption Purged 2 | . . . . 2 . . . . . . Corruption Blocked . | . . . . . . . . . . . Effects 37 | . . . 4 11 22 . . . . . Message Errors 7 | . . . . 2 5 . . . . . Matter Fused 8 | . . . 2 2 4 . . . . . Heat Flow Errors 8 | . . . . 3 5 . . . . . Energy Discharges 4 | . . . 1 2 1 . . . . . Parts Rejected 1 | . . . . . 1 . . . . . Data Loss (minor) 7 | . . . 1 2 4 . . . . . Misfires 2 | . . . . . 2 . . . . . Overload Shots . | . . . . . . . . . . . Overflow Damage 177 | . . 18 6 . 133 . 20 . . . Projectiles . | . . . . . . . . . . . Explosions 37 | . . 18 6 . . . 13 . . . Melee 140 | . . . . . 133 . 7 . . . Knockbacks . | . . . . . . . . . . . Impact . | . . . . . . . . . . . Kinetic . | . . . . . . . . . . . Secondary . | . . . . . . . . . . . Self-Inflicted Damage 304 | . . 107 97 . 4 . 96 . . . Shots 8 | . . 3 3 . . . 2 . . . Rammed 5 | . 2 . . . 2 . . . . 1 Targets Rammed 9 | . 2 . . 1 4 1 . . . 1 Kicked 4 | . . . . 1 2 1 . . . . Crushed . | . . . . . . . . . . . Highest Temperature 477 | . 12 124 332 267 378 477 256 . . 5 Average Temperature 92 | . 7 38 130 89 91 174 76 . . 5 Received Heat Transfer 3138 | . 90 369 167 81 1413 174 639 . . 205 Effects 9 | . . . 3 . 4 2 . . . . Shutdowns 2 | . . . 1 . 1 . . . . . Energy Bleed 1 | . . . . . . 1 . . . . Interference 5 | . . . 2 . 3 . . . . . Matter Decay 1 | . . . . . . 1 . . . . Siege Activations . | . . . . . . . . . . . Robots Corrupted . | . . . . . . . . . . . Combat Hostiles . | . . . . . . . . . . . Parts Fried . | . . . . . . . . . . . Impact Corruptions . | . . . . . . . . . . . Robots Melted 1 | . . . . . 1 . . . . . Combat Hostiles 1 | . . . . . 1 . . . . . Parts Melted 3 | . . . . . 1 2 . . . . Heat Transferred 2814 | . . . 150 . 1739 925 . . . . Parts Sabotaged . | . . . . . . . . . . . Parts Stolen . | . . . . . . . . . . . Parts Stripped . | . . . . . . . . . . . Power Chain Reactions 1 | . . . 1 . . . . . . . Alert | -11 -10 -9 -9 -8 -8 -7 -7 -7 -7 -6 ------- Run | Yrd Mat Mat Min Mat Sto Fac Low Low Dat Pro Peak Influence 509 | . 226 332 152 108 509 231 . . . . Initial 231 | . . 14 72 13 . 231 . . . . Average 109 | . 78 156 35 29 164 84 . . . . Maximum Alert Level 2 | . 1 1 . . 2 1 . . . . Low Security (%) 78 | 100 87 75 100 100 65 74 . . . . Level 1 19 | . 12 24 . . 28 25 . . . . Level 2 1 | . . . . . 5 . . . . . Level 3 . | . . . . . . . . . . . Level 4 . | . . . . . . . . . . . Level 5 . | . . . . . . . . . . . High Security . | . . . . . . . . . . . Max Security . | . . . . . . . . . . . Squads Dispatched 17 | . 2 3 . . 8 3 . . . 1 Investigation 9 | . 2 3 . . 3 1 . . . . Extermination 1 | . . . . . . 1 . . . . Reinforcement 3 | . . . . . 2 1 . . . . Assault 1 | . . . . . . . . . . 1 Garrison 3 | . . . . . 3 . . . . . Intercept . | . . . . . . . . . . . Searches Triggered . | . . . . . . . . . . . Construction Impeded . | . . . . . . . . . . . Haulers Reinforced . | . . . . . . . . . . . Active Scanning Responses . | . . . . . . . . . . . Cargo Convoy Interrupts . | . . . . . . . . . . . Stealth | -11 -10 -9 -9 -8 -8 -7 -7 -7 -7 -6 --------- Run | Yrd Mat Mat Min Mat Sto Fac Low Low Dat Pro Distress Signals 9 | . 1 2 . . 4 . . . . 2 Communications Jammed . | . . . . . . . . . . . Distress Signals . | . . . . . . . . . . . Times Spotted 146 | . 14 28 9 5 53 9 12 1 . 15 Peak Tracking Total 9 | . 5 6 3 3 7 3 5 1 . 9 Tactical Retreats 28 | . 2 3 4 . 12 . 1 1 . 5 Traps | -11 -10 -9 -9 -8 -8 -7 -7 -7 -7 -6 ------- Run | Yrd Mat Mat Min Mat Sto Fac Low Low Dat Pro Traps Triggered 2 | . . . . . . 2 . . . . Indirectly . | . . . . . . . . . . . Trap Hack Attempts . | . . . . . . . . . . . Triggered . | . . . . . . . . . . . Disarmed . | . . . . . . . . . . . Reprogrammed . | . . . . . . . . . . . Reused . | . . . . . . . . . . . Traps Extracted . | . . . . . . . . . . . Installed . | . . . . . . . . . . . Triggered 1 | . . . . . . . . 1 . . Machines | -11 -10 -9 -9 -8 -8 -7 -7 -7 -7 -6 ---------- Run | Yrd Mat Mat Min Mat Sto Fac Low Low Dat Pro Machines Disabled 3 | . . 3 . . . . . . . . Max in Single Turn 2 | . . 2 . . . . . . . . Machines Repaired . | . . . . . . . . . . . Machines Dismantled . | . . . . . . . . . . . Machines Sabotaged . | . . . . . . . . . . . Overloaded Fab Kills . | . . . . . . . . . . . Hacking | -11 -10 -9 -9 -8 -8 -7 -7 -7 -7 -6 --------- Run | Yrd Mat Mat Min Mat Sto Fac Low Low Dat Pro Machines Accessed 30 | . 3 4 . 2 12 5 . . 4 . Terminals 20 | . 3 3 . 2 8 4 . . . . Fabricators . | . . . . . . . . . . . Repair Stations 3 | . . 1 . . 2 . . . . . Recycling Units 2 | . . . . . 2 . . . . . Scanalyzers 1 | . . . . . . 1 . . . . Garrison Access . | . . . . . . . . . . . Total Hacks 99 | . 9 15 . 5 28 11 . . 31 . Successful 57 | . 1 7 . 1 10 7 . . 31 . Failed 42 | . 8 8 . 4 18 4 . . . . Catastrophic 11 | . 2 1 . 1 5 2 . . . . Database Lockouts . | . . . . . . . . . . . Manual 36 | . 8 8 . 5 8 7 . . . . Terminals 54 | . 9 10 . 5 21 9 . . . . Fabricators . | . . . . . . . . . . . Repair Stations 10 | . . 5 . . 5 . . . . . Recycling Units 2 | . . . . . 2 . . . . . Scanalyzers 2 | . . . . . . 2 . . . . Garrison Access . | . . . . . . . . . . . Terminal Hacks 45 | . 1 2 . 1 5 5 . . 31 . Record 13 | . . . . . 1 1 . . 11 . Part Schematic 11 | . . . . . . . . . 11 . Robot Schematic 6 | . . . . . . . . . 6 . Prototype ID Bank 3 | . . . . . . . . . 3 . Open Door 3 | . . . . . 3 . . . . . Open DSF 1 | . . . . . . 1 . . . . Alert Level 1 | . . 1 . . . . . . . . Unreport Threat 6 | . 1 1 . 1 1 2 . . . . Recall Reinforcements 1 | . . . . . . 1 . . . . Fabricator Hacks . | . . . . . . . . . . . Repair Station Hacks 8 | . . 5 . . 3 . . . . . Scan Component 4 | . . 3 . . 1 . . . . . Repair 3 | . . 2 . . 1 . . . . . Refit 1 | . . . . . 1 . . . . . Recycling Unit Hacks 2 | . . . . . 2 . . . . . Report Inventory 2 | . . . . . 2 . . . . . Scanalyzer 2 | . . . . . . 2 . . . . Insert Component 1 | . . . . . . 1 . . . . Analyze 1 | . . . . . . 1 . . . . Garrison Access Hacks . | . . . . . . . . . . . Unauthorized Hacks . | . . . . . . . . . . . Terminals . | . . . . . . . . . . . Fabricators . | . . . . . . . . . . . Repair Stations . | . . . . . . . . . . . Recycling Units . | . . . . . . . . . . . Scanalyzers . | . . . . . . . . . . . Garrison Access . | . . . . . . . . . . . Data Cores Recovered . | . . . . . . . . . . . Used . | . . . . . . . . . . . Hacking Detections 18 | . 2 4 . 2 8 2 . . . . Full Trace Events 12 | . 2 4 . 1 4 1 . . . . Feedback Events . | . . . . . . . . . . . Feedback Blocked . | . . . . . . . . . . . Robot Schematics Acquired 6 | . . . . . . . . . 6 . Robots Built . | . . . . . . . . . . . Authchips . | . . . . . . . . . . . Time . | . . . . . . . . . . . Total Robot Build Rating . | . . . . . . . . . . . Part Schematics Acquired 12 | . . . . . . 1 . . 11 . Parts Built . | . . . . . . . . . . . Authchips . | . . . . . . . . . . . Time . | . . . . . . . . . . . Total Part Build Rating . | . . . . . . . . . . . Parts Repaired 3 | . . 2 . . 1 . . . . . Time 90 | . . 52 . . 38 . . . . . Parts Recycled . | . . . . . . . . . . . Recycled Matter . | . . . . . . . . . . . Retrieved Matter . | . . . . . . . . . . . Retrieved Components . | . . . . . . . . . . . Parts Scanalyzed 1 | . . . . . . 1 . . . . Part Schematics Acquired 1 | . . . . . . 1 . . . . Parts Damaged . | . . . . . . . . . . . Bothacking | -11 -10 -9 -9 -8 -8 -7 -7 -7 -7 -6 ------------ Run | Yrd Mat Mat Min Mat Sto Fac Low Low Dat Pro Used RIF Installer . | . . . . . . . . . . . Robots Hacked . | . . . . . . . . . . . Non-combat . | . . . . . . . . . . . Combat . | . . . . . . . . . . . Robot Hacks Applied . | . . . . . . . . . . . Relay Couplers Released . | . . . . . . . . . . . Fabnet Peak Effective % . | . . . . . . . . . . . Robots Rewired . | . . . . . . . . . . . Allies Hacked . | . . . . . . . . . . . Hacks Repelled . | . . . . . . . . . . . Allies | -11 -10 -9 -9 -8 -8 -7 -7 -7 -7 -6 -------- Run | Yrd Mat Mat Min Mat Sto Fac Low Low Dat Pro Total Allies 11 | . . . . . 10 . . . . 1 Largest Group 10 | . . . . . 10 . . . . 1 Highest-Rated Group 173 | . . . . . 173 . . . . 96 Highest-Rated Ally 96 | . . . . . 29 . . . . 96 Total Orders . | . . . . . . . . . . . Ally Attacks 90 | . . . . . 88 . . . . 2 Total Damage 1092 | . . . . . 1049 . . . . 43 Kills 8 | . . . . . 8 . . . . . Allies Corrupted . | . . . . . . . . . . . Allies Melted . | . . . . . . . . . . . Intel | -11 -10 -9 -9 -8 -8 -7 -7 -7 -7 -6 ------- Run | Yrd Mat Mat Min Mat Sto Fac Low Low Dat Pro Robot Analysis Total . | . . . . . . . . . . . Derelict Logs Recovered 2 | . . . 1 . . . . . . 1 Drone Launches 6 | . . . . . 6 . . . . . Drone Recoveries 6 | . . . . . 6 . . . . . Exploration | -11 -10 -9 -9 -8 -8 -7 -7 -7 -7 -6 ------------- Run | Yrd Mat Mat Min Mat Sto Fac Low Low Dat Pro Turns Passed 8364 | 82 442 1115 969 644 2329 1551 471 282 124 355 Spaces Moved 4637 | 46 207 516 448 318 1023 1040 321 271 125 322 Core 16 | 3 . . . . 13 . . . . . Treads 1259 | 43 207 120 . 197 692 . . . . . Legs 1694 | . . 396 448 121 318 411 . . . . Wheels 1668 | . . . . . . 629 321 271 125 322 Hover . | . . . . . . . . . . . Flight . | . . . . . . . . . . . Fastest Speed 50 | 50 160 120 120 120 120 100 100 100 100 100 Average Speed 133 | 152 160 162 180 141 145 111 106 100 100 102 Slowest Speed 260 | 160 160 240 190 160 260 120 145 100 100 115 Overloaded Moves . | . . . . . . . . . . . Propulsion Burnouts . | . . . . . . . . . . . Robots Hopped . | . . . . . . . . . . . Cave-ins Triggered . | . . . . . . . . . . . Exploration Rate (%) 41 | 4 33 34 52 12 81 23 50 39 75 48 Regions Visited 10 Branch Regions 6 Pre-discovered Areas 1 | . . . . . . . . . 1 . Known Exits Taken . | . . . . . . . . . . . Unknown Exits Taken 10 | 1 1 1 1 1 1 1 1 1 1 . Scrap Searched 3 | . . . 1 . . . 1 1 . . Spaces Dug . | . . . . . . . . . . . Terrain Destroyed 165 | . . 60 11 . . . 94 . . . Melee . | . . . . . . . . . . . Projectile 1 | . . . 1 . . . . . . . AOE 164 | . . 60 10 . . . 94 . . . Terrain Rammed . | . . . . . . . . . . . Walls Destroyed . | . . . . . . . . . . . Machines Disabled . | . . . . . . . . . . . Actions | -11 -10 -9 -9 -8 -8 -7 -7 -7 -7 -6 --------- Run | Yrd Mat Mat Min Mat Sto Fac Low Low Dat Pro Total 6183 | 55 268 690 540 479 1643 1386 380 281 124 337 Wait 937 | . 30 77 41 110 416 236 9 10 . 8 Move 4627 | 45 206 515 447 317 1022 1039 320 270 124 322 Hop . | . . . . . . . . . . . Pick Up 49 | 4 1 6 1 10 8 19 . . . . Fast Attach 32 | 5 1 5 . 4 10 4 2 1 . . Attach 28 | 1 . 4 2 2 6 6 6 . . 1 Detach 3 | . . . . . 1 1 1 . . . Swap 69 | . 2 9 6 11 23 17 1 . . . Drop 59 | . . 5 2 9 15 28 . . . . Fire 262 | . 26 69 41 15 66 16 29 . . . Melee 98 | . . . . . 70 11 12 . . 5 Ram 3 | . . . . . 2 . . . . 1 Kick 4 | . . . . 1 2 1 . . . . Crush 2 | . 2 . . . . . . . . . Escape Stasis 8 | . . . . . . 8 . . . . Rewire 2 | . . . . . 2 . . . . . Trap . | . . . . . . . . . . . Miscellaneous . | . . . . . . . . . . . Route ------- -11/Scrapyard -10/Materials -9/Materials -9/Mines -8/Materials -8/Storage -7/Factory -7/Lower Caves (discovered 2 exits: [*Low] / *Dat) -7/Lower Caves -7/Data Miner -6/Proximity Caves History --------- Turn | Location | Event 31 | -11/Scrapyard | Discovered new exit (range 16) 83 | -11/Scrapyard | Entered Materials 304 | -10/Materials | Build established: Mutant 449 | -10/Materials | Discovered new exit (range 16) 525 | -10/Materials | Entered another Materials area 525 | -9/Materials | Evolved 2 slots: Utility x2 1403 | -9/Materials | Repaired Lgt. Armor Plating 1430 | -9/Materials | Repaired Lgt. Armor Plating 1466 | -9/Materials | Discovered new exit (range 6) 1640 | -9/Materials | Entered Mines 1650 | -9/Mines | Found a damaged Exp. Sensor Array with a note attached 1654 | -9/Mines | Found Prototype Device 1655 | -9/Mines | Identified Exp. Sensor Array 1979 | -9/Mines | Discovered new exit (range 5) 2238 | -9/Mines | Learned Materials terminal intel 2344 | -9/Mines | Excavation squad dispatched 2344 | -9/Mines | A large section of the Mines collapsed 2511 | -9/Mines | Core integrity fell below 50% 2552 | -9/Mines | Lost 3 parts (2u1w) 2609 | -9/Mines | Entered Materials 2609 | -8/Materials | Evolved 2 slots: Propulsion x1, Utility x1 2610 | -8/Materials | Loaded intel: 12 terminal locations 2942 | -8/Materials | Build established: Scavenger-Mutant 3036 | -8/Materials | Discovered new exit (range 10) 3253 | -8/Materials | Entered Storage 3412 | -8/Storage | Build established: Mutant 4801 | -8/Storage | Lost 7 parts (4n3w) 4808 | -8/Storage | Core integrity fell below 50% 4887 | -8/Storage | Garrison activated, responded to threat 5054 | -8/Storage | Core integrity fell below 20% 5065 | -8/Storage | Assisted by bots powering up and referring to "LRC-V3" 5122 | -8/Storage | Lost 3 allies 5393 | -8/Storage | Repaired Carbon-fiber Leg 5461 | -8/Storage | Lost 3 allies 5514 | -8/Storage | Build established: Scavenger-Mutant 5548 | -8/Storage | Discovered new exit (range 16) 5582 | -8/Storage | Entered Factory 5582 | -7/Factory | Evolved 2 slots: Power x1, Weapon x1 6218 | -7/Factory | Build established: Scavenger-Tank 6834 | -7/Factory | Build established: Tank 7119 | -7/Factory | Discovered new exit (range 8) 7133 | -7/Factory | Entered Lower Caves 7277 | -7/Lower Caves | Spotted B-75 Beast 7329 | -7/Lower Caves | Destroyed B-75 Beast 7335 | -7/Lower Caves | Lost 5 parts (1p2u2w) 7404 | -7/Lower Caves | Core integrity fell below 50% 7436 | -7/Lower Caves | Lost 5 parts (1p1n1u2w) 7518 | -7/Lower Caves | Encountered a Warlord checkpoint 7580 | -7/Lower Caves | Discovered new exit (range 13) 7581 | -7/Lower Caves | A Derelict revealed a hidden shortcut to meet someone special 7604 | -7/Lower Caves | Entered another Lower Caves area 7636 | -7/Lower Caves | Build established: Gladiator 7877 | -7/Lower Caves | Discovered new exit (range 7) 7886 | -7/Lower Caves | Entered Data Miner 7886 | -7/Data Miner | Discovered new exit (range 6) 7906 | -7/Data Miner | Met Data Miner 7939 | -7/Data Miner | Learned location of Section 7 (-3) 7939 | -7/Data Miner | Acquired the access code to Warlord's prototype stash 7956 | -7/Data Miner | Received God Mode back door access code from Data Miner 8010 | -7/Data Miner | Entered Proximity Caves 8108 | -6/Proximity Caves | Spotted B-75 Beast 8112 | -6/Proximity Caves | Spotter reported a threat 8157 | -6/Proximity Caves | Learned location of 1 exit from Factory 8228 | -6/Proximity Caves | Spotter reported a threat 8237 | -6/Proximity Caves | Spotter reported a threat 8326 | -6/Proximity Caves | Attracted the attention of an 0b10 outpost 8334 | -6/Proximity Caves | Escorted by Enhanced Grunt 8360 | -6/Proximity Caves | Core integrity fell below 20% 8365 | -6/Proximity Caves | Destroyed by L-41 Fighter with Axe Last Messages --------------- 08228_ ALERT: Unidentified potential threat approaching Complex 0b10. 08326_ Y-64 Sentinel: "DETECTED UNIDENTIFIED DERELICT." 08330_ Y-64 Sentinel: "REQUESTING BACKUP." 08334_ Enhanced Grunt: "Protecting LRC-V3." 08349_ S-27 Virus destroyed. 08352_ Chainsword follow-up attack on G-67 Veteran. 08352_ G-67 Veteran Flexi-carbon Leg severed. 08356_ Arm. Huge Wheel destroyed. 08359_ Critical hit (Burn: +50). 08362_ Lgt. Nuclear Core fries itself beyond repair. 08362_ Chainsword destroyed. 08363_ Autogun fries itself beyond repair. 08363_ Great Axe severed. 08363_ Slammed into L-41 Fighter. 08363_ Destabilizing: Core damaged (-21). 08364_ Acquired 14 matter. Map ----- +----------------------------------------------------+ | ### ##??????????????? | | #### ## #??????????????? | | ##??# ## ### ##??????????????? | | ##### ##???????????????? | | ######## ##???????????????? | | # #????""# #???????????????? | | ####### #? ?? # #???????????????? | | ??????## #? ?# #???????????????? | | ???????## #? # ##???????????????? | | ????????## #? # #????????????????? | | ?????????# #" # #????????????????? | | ?????????## ## ### ### ##???????????????? | | ??????????#### ##??????????????? | | ????????????## #??????????????? | | ????????????# ##??????????????? | | ????????????# ######???????????????? | | ????????????## ##????????????????????? | | ?????????????#### ##????????????????????? | | ?????# ###= ##???????????????????? | | ??????# ] #???????????????????? | | ????????# # ##???????????????????? | | ????????# ##### #????????????????????? | | ????????## ?????# ##???????????????????? | | ?????????# ??????# #####???????????????? | | ?????????# ???????## g##/#???????????????? | | ????????# ?????????# g@=#???????????????? | | ??????? ???????????# lgl#???????????????? | | ?????? ????????????## ####???????????????? | | ?????????????????????####??????????????????? | | ???????????????????????????????????????????? | | ???????????????????????????????????????????? | | ???????????????????????????????????????????? | | ???????????????????????????????????????????? | | ???????????????????????????????????????????? | | ???????????????????????????????????????????? | | ???????????????????????????????????????????? | | ???????????????????????????????????????????? | | ???????????????????????????????????????????? | | ???????????????????????????????????????????? | | ???????????????????????????????????????????? | | ???????????????????????????????????????????? | | ???????????????????????????????????????????? | | ???????????????????????????????????????????? | | ???????????????????????????????????????????? | | ???????????????????????????????????????????? | | ???????????????????????????????????????????? | | ???????????????????????????????????????????? | | ???????????????????????????????????????????? | | ???????????????????????????????????????????? | | ???????????????????????????????????????????? | +----------------------------------------------------+ Best States ------------- Heat Dissipation 48 Energy Generation 25 Energy Capacity 465 Matter Stores 300 Matter Capacity 300 Sight Range 16 Terrain Scan Range 14 Terrain Scan Density 110 Additional Mass Support 9 Armor Coverage 600 Utility Shielding 66 Melee Speed Boost 20 Evasion (%) 55 Targeting Accuracy 8 Recoil Reduction 3 Force Boost 20 Salvage Targeting 2 Offensive Hacking 10 Item Schematics ----------------- Core Shielding | -7/Factory | Scanalyzed Combat Drone Bay | -7/Data Miner | Free Lgt. Regenerative Plating | -7/Data Miner | Free Cld. Aerolev Unit | -7/Data Miner | Free Exp. Targeting Computer | -7/Data Miner | Free Com. Ion Cannon | -7/Data Miner | Free Hvy. Treads | -7/Data Miner | Free Imp. Transmission Jammer | -7/Data Miner | Free Hvy. Shock Bomb Launcher | -7/Data Miner | Free Imp. Gravmag System | -7/Data Miner | Free Point Defense System | -7/Data Miner | Free Impulse Thruster | -7/Data Miner | Free Robot Schematics ------------------ L-41 Fighter | -7/Data Miner | Free A-15 Conveyor | -7/Data Miner | Free M-28 Smith | -7/Data Miner | Free B-48 Gladiator | -7/Data Miner | Free B-60 Warrior | -7/Data Miner | Free M-22 Extractor | -7/Data Miner | Free Fabricated ------------ Nothing Alien Tech Used ----------------- None Achievements -------------- GoHome() Librarian The Oracle Challenges ------------ None Game ------ Seed DispersionConstructSlayer Manual? 0 Play Time 01:20:51 Cumulative 17.7 hours Start 2024.09.08 @ 09:22:45 End 2024.09.08 @ 10:48:24 Sessions 1 Manual Loads 0 Difficulty Rogue Special Mode None Game No. 38 Rogue 38 Adventurer 0 Explorer 0 Win Type - Total 0 Types 0/0/0/0/0/0/0/0/0 Lore% 5 Gallery% 21 Achievement% 19 Wizard Run 0 Options --------- Layout 1 ASCII 0 Keyboard 0 Movement Numpad Keybinds 0 Fullscreen 1 Font 24/Smallcaps Map View 50x35 Zoom Use 0% Tactical HUD 1 Map Filters NONE Filters NONE Steam 1 RUN: 7e11fd1d-598a-43c1-ab60-1e7886aeafff